[Event "Titled Tuesday Blitz March 22 Late 2022"]
[White "Olsen, Filip Boe"]
[Black "Borodavkin, Anatoly"]
[WhiteFideId "1440640"]
[BlackFideId "14150662"]
[WhiteElo "2188"]
[BlackElo "1845"]
[Result "1-0"]
[Round "02"]
[TimeControl "180+1"]
[Date "2022.03.22"]
[WhiteClock "0:00:24"]
[BlackClock "0:00:01"]

1. c4 {[%clk 0:03:00]}  e5 {[%clk 0:02:59]} 2. g3 {[%clk 0:02:55]}  d6 {[%clk 0:02:59]} 3. Bg2 {[%clk 0:02:55]}  Nc6 {[%clk 0:02:59]} 4. Nc3 {[%clk 0:02:52]}  Be6 {[%clk 0:02:58]} 5. b3 {[%clk 0:02:47]}  Qd7 {[%clk 0:02:58]} 6. Bb2 {[%clk 0:02:44]}  Nf6 {[%clk 0:02:51]} 7. e3 {[%clk 0:02:42]}  Be7 {[%clk 0:02:50]} 8. d4 {[%clk 0:02:42]}  exd4 {[%clk 0:02:44]} 9. exd4 {[%clk 0:02:42]}  Bf5 {[%clk 0:02:44]} 10. Nge2 {[%clk 0:02:26]}  O-O-O {[%clk 0:02:32]} 11. d5 {[%clk 0:02:14]}  Ne5 {[%clk 0:02:21]} 12. O-O {[%clk 0:02:14]}  Bh3 {[%clk 0:02:19]} 13. Qd4 {[%clk 0:02:09]}  Kb8 {[%clk 0:02:13]} 14. Nb5 {[%clk 0:02:06]}  b6 {[%clk 0:02:11]} 15. a4 {[%clk 0:01:53]}  c5 {[%clk 0:01:01]} 16. dxc6 {[%clk 0:01:45]}  Nxc6 {[%clk 0:01:00]} 17. Qc3 {[%clk 0:01:37]}  a5 {[%clk 0:00:51]} 18. Qf3 {[%clk 0:01:21]}  Bxg2 {[%clk 0:00:50]} 19. Kxg2 {[%clk 0:01:22]}  Ne5 {[%clk 0:00:38]} 20. Bxe5 {[%clk 0:01:04]}  dxe5 {[%clk 0:00:38]} 21. Nec3 {[%clk 0:01:01]}  Qb7 {[%clk 0:00:35]} 22. Rfd1 {[%clk 0:00:53]}  Qxf3+ {[%clk 0:00:22]} 23. Kxf3 {[%clk 0:00:53]}  Bb4 {[%clk 0:00:18]} 24. Nd5 {[%clk 0:00:51]}  Nxd5 {[%clk 0:00:18]} 25. cxd5 {[%clk 0:00:52]}  Kb7 {[%clk 0:00:16]} 26. Rac1 {[%clk 0:00:51]}  Rd7 {[%clk 0:00:15]} 27. Rc6 {[%clk 0:00:44]}  Rhd8 {[%clk 0:00:15]} 28. Rdc1 {[%clk 0:00:45]}  Rxd5 {[%clk 0:00:12]} 29. Rc7+ {[%clk 0:00:44]}  Kb8 {[%clk 0:00:13]} 30. Rxf7 {[%clk 0:00:43]}  Rf8 {[%clk 0:00:12]} 31. Rc7 {[%clk 0:00:41]}  Rxf7+ {[%clk 0:00:09]} 32. Rxf7 {[%clk 0:00:42]}  Bc5 {[%clk 0:00:08]} 33. Rxg7 {[%clk 0:00:40]}  Rd2 {[%clk 0:00:08]} 34. Rxh7 {[%clk 0:00:39]}  Rxf2+ {[%clk 0:00:08]} 35. Ke4 {[%clk 0:00:39]}  Re2+ {[%clk 0:00:08]} 36. Kd5 {[%clk 0:00:40]}  Rf2 {[%clk 0:00:04]} 37. Kxe5 {[%clk 0:00:36]}  Rf3 {[%clk 0:00:03]} 38. Kd5 {[%clk 0:00:35]}  Kc8 {[%clk 0:00:01]} 39. g4 {[%clk 0:00:24]}  Kd8 {[%clk 0:00:01]} 40. g5 {[%clk 0:00:24]} 1-0


[Site "https://www.chess.com"]

[Event "Titled Tuesday Blitz March 22 Late 2022"]
[White "Oro, Luis"]
[Black "Issani, Nameer"]
[WhiteFideId "104094"]
[BlackFideId "2619130"]
[WhiteElo "2312"]
[BlackElo "2541"]
[Result "0-1"]
[Round "02"]
[TimeControl "180+1"]
[Date "2022.03.22"]
[WhiteClock "0:00:04"]
[BlackClock "0:00:09"]

1. e4 {[%clk 0:03:00]}  e5 {[%clk 0:03:00]} 2. Nf3 {[%clk 0:03:00]}  Nc6 {[%clk 0:03:00]} 3. Bc4 {[%clk 0:03:00]}  Bc5 {[%clk 0:03:00]} 4. c3 {[%clk 0:03:01]}  Nf6 {[%clk 0:03:01]} 5. d3 {[%clk 0:03:01]}  d6 {[%clk 0:03:01]} 6. O-O {[%clk 0:03:01]}  O-O {[%clk 0:03:01]} 7. a4 {[%clk 0:03:02]}  a6 {[%clk 0:03:00]} 8. Be3 {[%clk 0:03:00]}  Bg4 {[%clk 0:02:51]} 9. Nbd2 {[%clk 0:02:59]}  Bxe3 {[%clk 0:02:40]} 10. fxe3 {[%clk 0:02:56]}  d5 {[%clk 0:02:41]} 11. exd5 {[%clk 0:02:55]}  Nxd5 {[%clk 0:02:42]} 12. Qe2 {[%clk 0:02:54]}  Kh8 {[%clk 0:02:33]} 13. Rae1 {[%clk 0:02:44]}  f5 {[%clk 0:02:11]} 14. Qf2 {[%clk 0:02:29]}  Qd6 {[%clk 0:01:45]} 15. h3 {[%clk 0:02:22]}  Bh5 {[%clk 0:01:45]} 16. Qh4 {[%clk 0:02:18]}  Bg6 {[%clk 0:01:37]} 17. Rf2 {[%clk 0:01:26]}  f4 {[%clk 0:01:23]} 18. e4 {[%clk 0:01:17]}  Ne3 {[%clk 0:01:23]} 19. Rfe2 {[%clk 0:01:08]}  Rad8 {[%clk 0:01:11]} 20. b4 {[%clk 0:00:59]}  a5 {[%clk 0:01:09]} 21. b5 {[%clk 0:00:56]}  Nb8 {[%clk 0:01:06]} 22. d4 {[%clk 0:00:36]}  Nd7 {[%clk 0:01:06]} 23. Qg5 {[%clk 0:00:31]}  h6 {[%clk 0:00:52]} 24. Qh4 {[%clk 0:00:29]}  Bh7 {[%clk 0:00:49]} 25. Bb3 {[%clk 0:00:27]}  g5 {[%clk 0:00:39]} 26. Qf2 {[%clk 0:00:23]}  Qe7 {[%clk 0:00:39]} 27. Rxe3 {[%clk 0:00:19]}  fxe3 {[%clk 0:00:39]} 28. Qxe3 {[%clk 0:00:19]}  Rde8 {[%clk 0:00:31]} 29. Nc4 {[%clk 0:00:18]}  exd4 {[%clk 0:00:31]} 30. Qxd4+ {[%clk 0:00:18]}  Qg7 {[%clk 0:00:31]} 31. e5 {[%clk 0:00:17]}  Rf4 {[%clk 0:00:28]} 32. Qd2 {[%clk 0:00:15]}  Nc5 {[%clk 0:00:27]} 33. Ba2 {[%clk 0:00:07]}  Ne4 {[%clk 0:00:25]} 34. Qc2 {[%clk 0:00:05]}  Ng3 {[%clk 0:00:20]} 35. Qb2 {[%clk 0:00:02]}  Ref8 {[%clk 0:00:20]} 36. Nh2 {[%clk 0:00:02]}  Nf5 {[%clk 0:00:17]} 37. Qd2 {[%clk 0:00:02]}  Ng3 {[%clk 0:00:16]} 38. e6 {[%clk 0:00:02]}  Qe7 {[%clk 0:00:16]} 39. Qe3 {[%clk 0:00:01]}  Nf5 {[%clk 0:00:15]} 40. Qe2 {[%clk 0:00:02]}  Nd6 {[%clk 0:00:14]} 41. Qd2 {[%clk 0:00:02]}  Nxc4 {[%clk 0:00:14]} 42. Qe2 {[%clk 0:00:01]}  Nd6 {[%clk 0:00:14]} 43. Nf3 {[%clk 0:00:02]}  g4 {[%clk 0:00:13]} 44. Ne5 {[%clk 0:00:02]}  gxh3 {[%clk 0:00:12]} 45. g3 {[%clk 0:00:03]}  Rf2 {[%clk 0:00:12]} 46. Qxf2 {[%clk 0:00:03]}  Rxf2 {[%clk 0:00:12]} 47. Kxf2 {[%clk 0:00:04]}  Ne4+ {[%clk 0:00:12]} 48. Kg1 {[%clk 0:00:04]}  Qc5+ {[%clk 0:00:11]} 49. Kh2 {[%clk 0:00:03]}  Qf2+ {[%clk 0:00:11]} 50. Kh1 {[%clk 0:00:04]}  Qg2# {[%clk 0:00:09]} 0-1


[Site "https://www.chess.com"]

[Event "Titled Tuesday Blitz March 22 Late 2022"]
[White "Papp, Levente"]
[Black "Rustemov, Alexander"]
[WhiteFideId "751243"]
[BlackFideId "4119002"]
[WhiteElo "2308"]
[BlackElo "2799"]
[Result "1-0"]
[Round "02"]
[TimeControl "180+1"]
[Date "2022.03.22"]
[WhiteClock "0:00:37"]
[BlackClock "0:00:12"]

1. c4 {[%clk 0:03:00]}  e6 {[%clk 0:02:58]} 2. Nf3 {[%clk 0:02:58]}  d5 {[%clk 0:02:58]} 3. g3 {[%clk 0:02:59]}  Nf6 {[%clk 0:02:58]} 4. Bg2 {[%clk 0:02:59]}  Be7 {[%clk 0:02:58]} 5. O-O {[%clk 0:02:59]}  O-O {[%clk 0:02:59]} 6. d4 {[%clk 0:02:58]}  Nbd7 {[%clk 0:02:59]} 7. Qc2 {[%clk 0:02:56]}  c6 {[%clk 0:02:58]} 8. Nbd2 {[%clk 0:02:55]}  b6 {[%clk 0:02:58]} 9. b3 {[%clk 0:02:54]}  Bb7 {[%clk 0:02:57]} 10. Bb2 {[%clk 0:02:53]}  Rc8 {[%clk 0:02:58]} 11. Rac1 {[%clk 0:02:52]}  c5 {[%clk 0:02:57]} 12. cxd5 {[%clk 0:02:50]}  Nxd5 {[%clk 0:02:49]} 13. Qb1 {[%clk 0:02:47]}  cxd4 {[%clk 0:02:35]} 14. Nxd4 {[%clk 0:02:39]}  Rxc1 {[%clk 0:02:26]} 15. Rxc1 {[%clk 0:02:39]}  Qa8 {[%clk 0:02:27]} 16. Qa1 {[%clk 0:02:11]}  Bf6 {[%clk 0:02:18]} 17. a3 {[%clk 0:02:04]}  Rc8 {[%clk 0:02:17]} 18. e4 {[%clk 0:01:53]}  Ne7 {[%clk 0:02:12]} 19. b4 {[%clk 0:01:53]}  h5 {[%clk 0:01:47]} 20. h4 {[%clk 0:01:49]}  Ng6 {[%clk 0:01:43]} 21. Nb5 {[%clk 0:01:42]}  Rxc1+ {[%clk 0:01:18]} 22. Qxc1 {[%clk 0:01:43]}  Bxb2 {[%clk 0:01:17]} 23. Qxb2 {[%clk 0:01:44]}  Nde5 {[%clk 0:01:13]} 24. Qd4 {[%clk 0:01:36]}  a6 {[%clk 0:01:08]} 25. Nd6 {[%clk 0:01:34]}  Qd8 {[%clk 0:01:04]} 26. Nb3 {[%clk 0:01:10]}  Bc6 {[%clk 0:01:02]} 27. f4 {[%clk 0:01:10]}  Ng4 {[%clk 0:01:00]} 28. Nc4 {[%clk 0:01:10]}  Qxd4+ {[%clk 0:00:54]} 29. Nxd4 {[%clk 0:01:10]}  Bd7 {[%clk 0:00:51]} 30. Nxb6 {[%clk 0:01:10]}  Be8 {[%clk 0:00:48]} 31. Bf1 {[%clk 0:01:09]}  Ne3 {[%clk 0:00:47]} 32. Bxa6 {[%clk 0:01:08]}  e5 {[%clk 0:00:47]} 33. fxe5 {[%clk 0:01:06]}  Nxe5 {[%clk 0:00:47]} 34. Nd5 {[%clk 0:01:04]}  N3c4 {[%clk 0:00:26]} 35. Bxc4 {[%clk 0:01:05]}  Nxc4 {[%clk 0:00:27]} 36. b5 {[%clk 0:01:05]}  Kf8 {[%clk 0:00:21]} 37. a4 {[%clk 0:00:55]}  Na5 {[%clk 0:00:21]} 38. e5 {[%clk 0:00:49]}  Bd7 {[%clk 0:00:21]} 39. Kf2 {[%clk 0:00:46]}  Nc4 {[%clk 0:00:21]} 40. b6 {[%clk 0:00:44]}  Na5 {[%clk 0:00:19]} 41. Nb5 {[%clk 0:00:44]}  Bxb5 {[%clk 0:00:17]} 42. axb5 {[%clk 0:00:44]}  Ke8 {[%clk 0:00:17]} 43. Ke3 {[%clk 0:00:41]}  Kd7 {[%clk 0:00:17]} 44. Kd4 {[%clk 0:00:41]}  Nb7 {[%clk 0:00:18]} 45. Nf4 {[%clk 0:00:40]}  g6 {[%clk 0:00:18]} 46. Kd5 {[%clk 0:00:40]}  Na5 {[%clk 0:00:19]} 47. e6+ {[%clk 0:00:39]}  fxe6+ {[%clk 0:00:19]} 48. Nxe6 {[%clk 0:00:40]}  Ke7 {[%clk 0:00:16]} 49. Nf4 {[%clk 0:00:40]}  Kf6 {[%clk 0:00:16]} 50. Kd6 {[%clk 0:00:40]}  Kf5 {[%clk 0:00:12]} 51. Kc7 {[%clk 0:00:40]}  g5 {[%clk 0:00:11]} 52. hxg5 {[%clk 0:00:39]}  h4 {[%clk 0:00:12]} 53. gxh4 {[%clk 0:00:37]} 1-0


[Site "https://www.chess.com"]

[Event "Titled Tuesday Blitz March 22 Late 2022"]
[White "Piliczewski, Bogusz"]
[Black "Fieberg, Samuel"]
[WhiteFideId "1104144"]
[BlackFideId "12901717"]
[WhiteElo "1896"]
[BlackElo "2459"]
[Result "0-1"]
[Round "02"]
[TimeControl "180+1"]
[Date "2022.03.22"]
[WhiteClock "0:00:08"]
[BlackClock "0:01:13"]

1. d4 {[%clk 0:02:55]}  d5 {[%clk 0:02:59]} 2. Nf3 {[%clk 0:02:54]}  e6 {[%clk 0:02:59]} 3. Bf4 {[%clk 0:02:55]}  c5 {[%clk 0:02:58]} 4. c3 {[%clk 0:02:54]}  Nc6 {[%clk 0:02:58]} 5. e3 {[%clk 0:02:54]}  Bd6 {[%clk 0:02:51]} 6. Bxd6 {[%clk 0:02:52]}  Qxd6 {[%clk 0:02:51]} 7. Nbd2 {[%clk 0:02:51]}  Nf6 {[%clk 0:02:48]} 8. Bd3 {[%clk 0:02:51]}  e5 {[%clk 0:02:42]} 9. dxc5 {[%clk 0:02:50]}  Qxc5 {[%clk 0:02:36]} 10. e4 {[%clk 0:02:50]}  dxe4 {[%clk 0:02:35]} 11. Nxe4 {[%clk 0:02:49]}  Nxe4 {[%clk 0:02:33]} 12. Bxe4 {[%clk 0:02:49]}  O-O {[%clk 0:02:32]} 13. O-O {[%clk 0:02:47]}  Bg4 {[%clk 0:02:32]} 14. h3 {[%clk 0:02:45]}  Bh5 {[%clk 0:02:31]} 15. Qe2 {[%clk 0:02:38]}  Rae8 {[%clk 0:02:22]} 16. Rfd1 {[%clk 0:02:32]}  f5 {[%clk 0:02:20]} 17. Bd5+ {[%clk 0:02:21]}  Kh8 {[%clk 0:02:19]} 18. Qe3 {[%clk 0:01:32]}  Qxe3 {[%clk 0:02:17]} 19. fxe3 {[%clk 0:01:31]}  e4 {[%clk 0:02:17]} 20. Ng5 {[%clk 0:01:25]}  Bxd1 {[%clk 0:02:13]} 21. Rxd1 {[%clk 0:01:12]}  Ne5 {[%clk 0:02:02]} 22. Bxb7 {[%clk 0:01:03]}  h6 {[%clk 0:01:58]} 23. Nxe4 {[%clk 0:00:48]}  fxe4 {[%clk 0:01:55]} 24. Bxe4 {[%clk 0:00:48]}  Nc4 {[%clk 0:01:54]} 25. Bg6 {[%clk 0:00:33]}  Nxe3 {[%clk 0:01:54]} 26. Rd7 {[%clk 0:00:25]}  Re6 {[%clk 0:01:46]} 27. Bh5 {[%clk 0:00:23]}  g6 {[%clk 0:01:33]} 28. Bf3 {[%clk 0:00:22]}  a6 {[%clk 0:01:28]} 29. Be2 {[%clk 0:00:15]}  Rb6 {[%clk 0:01:25]} 30. b3 {[%clk 0:00:14]}  Nf5 {[%clk 0:01:24]} 31. Bd3 {[%clk 0:00:13]}  a5 {[%clk 0:01:14]} 32. Rd5 {[%clk 0:00:11]}  a4 {[%clk 0:01:13]} 33. bxa4 {[%clk 0:00:08]}  Rd6 {[%clk 0:01:13]} 0-1


[Site "https://www.chess.com"]

[Event "Titled Tuesday Blitz March 22 Late 2022"]
[White "Pinheiro, Iung Alicio de O."]
[Black "Vifleemskaia, Svetlana"]
[WhiteFideId "2104350"]
[BlackFideId "4129490"]
[WhiteElo "2524"]
[BlackElo "1901"]
[Result "1-0"]
[Round "02"]
[TimeControl "180+1"]
[Date "2022.03.22"]
[WhiteClock "0:00:47"]
[BlackClock "0:01:11"]

1. c4 {[%clk 0:02:59]}  c5 {[%clk 0:02:59]} 2. g3 {[%clk 0:02:58]}  Nf6 {[%clk 0:02:59]} 3. Bg2 {[%clk 0:02:58]}  d5 {[%clk 0:02:59]} 4. cxd5 {[%clk 0:02:58]}  Nxd5 {[%clk 0:03:00]} 5. Nc3 {[%clk 0:02:59]}  Nc7 {[%clk 0:03:00]} 6. Nf3 {[%clk 0:02:57]}  Nc6 {[%clk 0:03:00]} 7. O-O {[%clk 0:02:55]}  e5 {[%clk 0:03:00]} 8. Ne1 {[%clk 0:02:56]}  Bd7 {[%clk 0:02:58]} 9. Nd3 {[%clk 0:02:46]}  Bd6 {[%clk 0:02:36]} 10. b3 {[%clk 0:02:26]}  O-O {[%clk 0:02:35]} 11. f4 {[%clk 0:02:26]}  exf4 {[%clk 0:02:33]} 12. Nxf4 {[%clk 0:02:26]}  Rb8 {[%clk 0:02:21]} 13. Bb2 {[%clk 0:02:24]}  Nd4 {[%clk 0:02:19]} 14. e3 {[%clk 0:02:23]}  Nde6 {[%clk 0:02:19]} 15. Ne4 {[%clk 0:02:16]}  Be7 {[%clk 0:02:16]} 16. Nh5 {[%clk 0:02:14]}  f6 {[%clk 0:02:10]} 17. Bh3 {[%clk 0:01:23]}  g6 {[%clk 0:01:48]} 18. Nhxf6+ {[%clk 0:01:16]}  Rxf6 {[%clk 0:01:31]} 19. Nxf6+ {[%clk 0:01:12]}  Bxf6 {[%clk 0:01:29]} 20. Rxf6 {[%clk 0:01:06]}  Nd4 {[%clk 0:01:22]} 21. Bxd4 {[%clk 0:00:48]}  cxd4 {[%clk 0:01:11]} 22. Rd6 {[%clk 0:00:47]} 1-0


[Site "https://www.chess.com"]

[Event "Titled Tuesday Blitz March 22 Late 2022"]
[White "Plotnikov, Pavel"]
[Black "Jaracz, Pawel"]
[WhiteFideId "4170342"]
[BlackFideId "1102222"]
[WhiteElo "2298"]
[BlackElo "2429"]
[Result "1-0"]
[Round "02"]
[TimeControl "180+1"]
[Date "2022.03.22"]
[WhiteClock "0:00:18"]
[BlackClock "0:00:03"]

1. e4 {[%clk 0:02:59]}  e5 {[%clk 0:02:59]} 2. Nf3 {[%clk 0:02:59]}  Nc6 {[%clk 0:02:58]} 3. Bb5 {[%clk 0:02:59]}  a6 {[%clk 0:02:57]} 4. Ba4 {[%clk 0:03:00]}  Nge7 {[%clk 0:02:56]} 5. c3 {[%clk 0:02:59]}  Ng6 {[%clk 0:02:55]} 6. d4 {[%clk 0:02:55]}  exd4 {[%clk 0:02:51]} 7. cxd4 {[%clk 0:02:55]}  d5 {[%clk 0:02:51]} 8. exd5 {[%clk 0:02:45]}  Qxd5 {[%clk 0:02:50]} 9. O-O {[%clk 0:02:45]}  Bg4 {[%clk 0:02:41]} 10. Re1+ {[%clk 0:02:29]}  Be7 {[%clk 0:02:40]} 11. Nc3 {[%clk 0:02:28]}  Qh5 {[%clk 0:01:54]} 12. d5 {[%clk 0:02:16]}  b5 {[%clk 0:01:05]} 13. Nxb5 {[%clk 0:02:02]}  axb5 {[%clk 0:01:04]} 14. Bxb5 {[%clk 0:02:02]}  O-O {[%clk 0:01:02]} 15. Bxc6 {[%clk 0:02:02]}  Bd6 {[%clk 0:00:54]} 16. h3 {[%clk 0:01:50]}  Bxh3 {[%clk 0:00:38]} 17. Ne5 {[%clk 0:01:09]}  Qh4 {[%clk 0:00:19]} 18. Nxg6 {[%clk 0:00:51]}  fxg6 {[%clk 0:00:19]} 19. Qe2 {[%clk 0:00:35]}  Bg4 {[%clk 0:00:18]} 20. g3 {[%clk 0:00:30]}  Qh5 {[%clk 0:00:14]} 21. Qe4 {[%clk 0:00:26]}  Bf3 {[%clk 0:00:08]} 22. Qh4 {[%clk 0:00:25]}  Qxh4 {[%clk 0:00:07]} 23. gxh4 {[%clk 0:00:26]}  Rab8 {[%clk 0:00:06]} 24. a3 {[%clk 0:00:20]}  Rb3 {[%clk 0:00:05]} 25. Re3 {[%clk 0:00:20]}  Rxe3 {[%clk 0:00:04]} 26. Bxe3 {[%clk 0:00:20]}  Rf5 {[%clk 0:00:01]} 27. Bg5 {[%clk 0:00:18]}  h6 {[%clk 0:00:01]} 28. Bd7 {[%clk 0:00:18]}  Rxd5 {[%clk 0:00:01]} 29. Be6+ {[%clk 0:00:18]}  Kh7 {[%clk 0:00:01]} 30. Bxd5 {[%clk 0:00:19]}  Bxd5 {[%clk 0:00:01]} 31. Be3 {[%clk 0:00:19]}  c5 {[%clk 0:00:01]} 32. a4 {[%clk 0:00:19]}  Bc4 {[%clk 0:00:01]} 33. a5 {[%clk 0:00:19]}  Ba6 {[%clk 0:00:02]} 34. Rd1 {[%clk 0:00:18]}  Be5 {[%clk 0:00:02]} 35. Rd5 {[%clk 0:00:18]}  Bxb2 {[%clk 0:00:02]} 36. Rxc5 {[%clk 0:00:18]}  g5 {[%clk 0:00:03]} 37. Rc6 {[%clk 0:00:18]}  Bb5 {[%clk 0:00:03]} 38. Rb6 {[%clk 0:00:18]} 1-0


[Site "https://www.chess.com"]

[Event "Titled Tuesday Blitz March 22 Late 2022"]
[White "Prohorov, Olexandr"]
[Black "Adewumi, Tanitoluwa"]
[WhiteFideId "14105578"]
[BlackFideId "30966396"]
[WhiteElo "1993"]
[BlackElo "2545"]
[Result "1-0"]
[Round "02"]
[TimeControl "180+1"]
[Date "2022.03.22"]
[WhiteClock "0:00:47"]
[BlackClock "0:00:36"]

1. Nf3 {[%clk 0:03:00]}  Nf6 {[%clk 0:02:39]} 2. c4 {[%clk 0:03:00]}  g6 {[%clk 0:02:39]} 3. Nc3 {[%clk 0:02:59]}  Bg7 {[%clk 0:02:22]} 4. g3 {[%clk 0:02:59]}  Kf8 {[%clk 0:02:21]} 5. Bg2 {[%clk 0:02:59]}  d6 {[%clk 0:02:19]} 6. O-O {[%clk 0:02:59]}  Kg8 {[%clk 0:02:18]} 7. d4 {[%clk 0:02:59]}  h6 {[%clk 0:02:19]} 8. e4 {[%clk 0:02:58]}  Kh7 {[%clk 0:02:19]} 9. Re1 {[%clk 0:02:58]}  Nfd7 {[%clk 0:02:14]} 10. h4 {[%clk 0:02:48]}  Nc6 {[%clk 0:02:11]} 11. Rb1 {[%clk 0:02:34]}  e5 {[%clk 0:02:10]} 12. d5 {[%clk 0:02:31]}  Nd4 {[%clk 0:02:05]} 13. Nxd4 {[%clk 0:02:27]}  exd4 {[%clk 0:02:06]} 14. Ne2 {[%clk 0:02:25]}  Ne5 {[%clk 0:02:03]} 15. Nxd4 {[%clk 0:01:56]}  Nxc4 {[%clk 0:02:03]} 16. h5 {[%clk 0:01:50]}  Bd7 {[%clk 0:01:49]} 17. hxg6+ {[%clk 0:01:46]}  fxg6 {[%clk 0:01:50]} 18. Ne6 {[%clk 0:01:31]}  Bxe6 {[%clk 0:01:39]} 19. dxe6 {[%clk 0:01:31]}  c6 {[%clk 0:01:18]} 20. b3 {[%clk 0:01:27]}  Nb6 {[%clk 0:01:05]} 21. Bh3 {[%clk 0:01:17]}  Qe7 {[%clk 0:01:03]} 22. f4 {[%clk 0:01:11]}  Rhf8 {[%clk 0:00:42]} 23. Ba3 {[%clk 0:01:07]}  Rad8 {[%clk 0:00:40]} 24. e5 {[%clk 0:01:07]}  c5 {[%clk 0:00:39]} 25. exd6 {[%clk 0:00:59]}  Rxd6 {[%clk 0:00:39]} 26. Bxc5 {[%clk 0:00:56]}  Bd4+ {[%clk 0:00:36]} 27. Qxd4 {[%clk 0:00:47]} 1-0


[Site "https://www.chess.com"]

[Event "Titled Tuesday Blitz March 22 Late 2022"]
[White "Rabineau, Clement"]
[Black "Pichot, Alan"]
[WhiteFideId "628891"]
[BlackFideId "110973"]
[WhiteElo "2237"]
[BlackElo "2579"]
[Result "0-1"]
[Round "02"]
[TimeControl "180+1"]
[Date "2022.03.22"]
[WhiteClock "0:00:02"]
[BlackClock "0:01:27"]

1. e4 {[%clk 0:02:39]}  e5 {[%clk 0:02:58]} 2. Nf3 {[%clk 0:02:39]}  Nc6 {[%clk 0:02:59]} 3. Bb5 {[%clk 0:02:38]}  Nf6 {[%clk 0:02:58]} 4. O-O {[%clk 0:02:38]}  Nxe4 {[%clk 0:02:58]} 5. d4 {[%clk 0:02:37]}  Nd6 {[%clk 0:02:58]} 6. Bxc6 {[%clk 0:02:37]}  dxc6 {[%clk 0:02:59]} 7. dxe5 {[%clk 0:02:38]}  Nf5 {[%clk 0:02:59]} 8. Qxd8+ {[%clk 0:02:38]}  Kxd8 {[%clk 0:03:00]} 9. h3 {[%clk 0:02:37]}  Be7 {[%clk 0:03:00]} 10. Nc3 {[%clk 0:02:37]}  Be6 {[%clk 0:02:59]} 11. Rd1+ {[%clk 0:02:33]}  Kc8 {[%clk 0:03:00]} 12. Bf4 {[%clk 0:02:33]}  b6 {[%clk 0:02:56]} 13. g4 {[%clk 0:02:27]}  Nh4 {[%clk 0:02:56]} 14. Nxh4 {[%clk 0:02:20]}  Bxh4 {[%clk 0:02:57]} 15. Ne4 {[%clk 0:02:19]}  Be7 {[%clk 0:02:57]} 16. Ng5 {[%clk 0:01:39]}  Bxg5 {[%clk 0:02:49]} 17. Bxg5 {[%clk 0:01:40]}  h5 {[%clk 0:02:48]} 18. f3 {[%clk 0:01:12]}  Kb7 {[%clk 0:02:49]} 19. Kg2 {[%clk 0:01:07]}  c5 {[%clk 0:02:49]} 20. Kg3 {[%clk 0:01:00]}  a5 {[%clk 0:02:48]} 21. a4 {[%clk 0:00:58]}  Kc6 {[%clk 0:02:47]} 22. Rd2 {[%clk 0:00:52]}  hxg4 {[%clk 0:02:31]} 23. hxg4 {[%clk 0:00:53]}  Rae8 {[%clk 0:02:27]} 24. Rad1 {[%clk 0:00:47]}  Kb7 {[%clk 0:02:19]} 25. f4 {[%clk 0:00:28]}  g6 {[%clk 0:02:19]} 26. Bf6 {[%clk 0:00:23]}  Rh7 {[%clk 0:02:19]} 27. Rd8 {[%clk 0:00:16]}  Rxd8 {[%clk 0:02:19]} 28. Bxd8 {[%clk 0:00:17]}  Kc6 {[%clk 0:02:16]} 29. Bh4 {[%clk 0:00:16]}  Bd5 {[%clk 0:02:15]} 30. b3 {[%clk 0:00:16]}  c4 {[%clk 0:02:14]} 31. Rc1 {[%clk 0:00:06]}  Kc5 {[%clk 0:02:11]} 32. Be7+ {[%clk 0:00:06]}  Kc6 {[%clk 0:02:05]} 33. bxc4 {[%clk 0:00:05]}  Bxc4 {[%clk 0:02:05]} 34. c3 {[%clk 0:00:05]}  Bb3 {[%clk 0:02:01]} 35. Ra1 {[%clk 0:00:03]}  Rh8 {[%clk 0:02:01]} 36. Bf6 {[%clk 0:00:04]}  Ra8 {[%clk 0:01:58]} 37. Ra3 {[%clk 0:00:05]}  Bc4 {[%clk 0:01:54]} 38. Ra1 {[%clk 0:00:04]}  b5 {[%clk 0:01:53]} 39. axb5+ {[%clk 0:00:05]}  Kxb5 {[%clk 0:01:54]} 40. f5 {[%clk 0:00:05]}  gxf5 {[%clk 0:01:50]} 41. gxf5 {[%clk 0:00:06]}  a4 {[%clk 0:01:51]} 42. Kf4 {[%clk 0:00:06]}  a3 {[%clk 0:01:51]} 43. Be7 {[%clk 0:00:06]}  a2 {[%clk 0:01:51]} 44. Bb4 {[%clk 0:00:06]}  Ka4 {[%clk 0:01:47]} 45. Ke4 {[%clk 0:00:05]}  Kb3 {[%clk 0:01:46]} 46. e6 {[%clk 0:00:02]}  fxe6 {[%clk 0:01:46]} 47. f6 {[%clk 0:00:03]}  e5 {[%clk 0:01:46]} 48. Kxe5 {[%clk 0:00:04]}  Kb2 {[%clk 0:01:37]} 49. Rg1 {[%clk 0:00:01]}  a1=Q {[%clk 0:01:37]} 50. Rxa1 {[%clk 0:00:02]}  Kxa1 {[%clk 0:01:37]} 51. Kd4 {[%clk 0:00:01]}  Bf7 {[%clk 0:01:28]} 52. Kc5 {[%clk 0:00:02]}  Ra6 {[%clk 0:01:27]} 53. Kb5 {[%clk 0:00:02]} 0-1


[Site "https://www.chess.com"]

[Event "Titled Tuesday Blitz March 22 Late 2022"]
[White "Ronka, Erik"]
[Black "Fajdetic, Hrvoje"]
[WhiteFideId "505080"]
[BlackFideId "14501945"]
[WhiteElo "2264"]
[BlackElo "2172"]
[Result "0-1"]
[Round "02"]
[TimeControl "180+1"]
[Date "2022.03.22"]
[WhiteClock "0:02:36"]
[BlackClock "0:01:10"]

1. e4 {[%clk 0:03:00]}  e6 {[%clk 0:02:56]} 2. d4 {[%clk 0:03:00]}  d5 {[%clk 0:02:57]} 3. Nc3 {[%clk 0:03:01]}  dxe4 {[%clk 0:02:57]} 4. Nxe4 {[%clk 0:03:01]}  Nd7 {[%clk 0:02:57]} 5. Bd3 {[%clk 0:03:02]}  Ngf6 {[%clk 0:02:58]} 6. Nf3 {[%clk 0:03:02]}  Nxe4 {[%clk 0:02:58]} 7. Bxe4 {[%clk 0:03:03]}  Nf6 {[%clk 0:02:59]} 8. Bg5 {[%clk 0:03:03]}  c5 {[%clk 0:02:57]} 9. O-O {[%clk 0:02:59]}  cxd4 {[%clk 0:02:45]} 10. Nxd4 {[%clk 0:03:00]}  Be7 {[%clk 0:02:42]} 11. Bf3 {[%clk 0:03:01]}  h6 {[%clk 0:02:36]} 12. Bh4 {[%clk 0:03:00]}  O-O {[%clk 0:02:35]} 13. Qd3 {[%clk 0:03:01]}  Bc5 {[%clk 0:02:13]} 14. Rad1 {[%clk 0:02:57]}  e5 {[%clk 0:02:08]} 15. Nb3 {[%clk 0:02:54]}  Qxd3 {[%clk 0:02:06]} 16. Rxd3 {[%clk 0:02:55]}  e4 {[%clk 0:01:40]} 17. Rc3 {[%clk 0:02:53]}  exf3 {[%clk 0:01:37]} 18. Nxc5 {[%clk 0:02:52]}  fxg2 {[%clk 0:01:38]} 19. Kxg2 {[%clk 0:02:52]}  b6 {[%clk 0:01:38]} 20. Bxf6 {[%clk 0:02:50]}  gxf6 {[%clk 0:01:33]} 21. Nd3 {[%clk 0:02:50]}  Bb7+ {[%clk 0:01:26]} 22. Kg3 {[%clk 0:02:50]}  Rac8 {[%clk 0:01:15]} 23. Rxc8 {[%clk 0:02:44]}  Rxc8 {[%clk 0:01:16]} 24. c3 {[%clk 0:02:44]}  Ba6 {[%clk 0:01:10]} 25. Rd1 {[%clk 0:02:36]}  Rd8 {[%clk 0:01:10]} 0-1


[Site "https://www.chess.com"]